[Event "New Zealand Rapid Championship"]
[Site "Wellington"]
[Date "2023.01.11"]
[Round "2.5"]
[White "Park-Tamati, Philli"]
[Black "Ker, Anthony F"]
[Result "1-0"]
[TimeControl "25+5"]
[BlackTitle "IM"]
[WhiteFideId "4309090"]
[BlackFideId "4300084"]
[WhiteElo "1861"]
[BlackElo "2359"]

1. d4 {[%clk 00:25:09]} Nf6 {[%clk 00:25:06]} {[%emt 00:00:05]} 2. Bf4 {[%clk
00:25:12]} {[%emt 00:00:02]} e6 {[%clk 00:25:04]} {[%emt 00:00:07]} 3. e3
{[%clk 00:25:09]} {[%emt 00:00:07]} c5 {[%clk 00:25:03]} {[%emt 00:00:06]} 4.
c3 {[%clk 00:25:12]} {[%emt 00:00:03]} b6 {[%clk 00:24:39]} {[%emt 00:00:30]} 5.
Nd2 {[%clk 00:25:05]} {[%emt 00:00:11]} Bb7 {[%clk 00:24:13]} {[%emt 00:00:31]}
6. Ngf3 {[%clk 00:22:58]} {[%emt 00:02:11]} Be7 {[%clk 00:23:55]} {[%emt
00:00:24]} 7. h3 {[%clk 00:22:57]} {[%emt 00:00:06]} cxd4 {[%clk 00:23:49]}
{[%emt 00:00:11]} 8. cxd4 {[%clk 00:22:47]} {[%emt 00:00:15]} O-O {[%clk
00:23:06]} {[%emt 00:00:47]} 9. Bd3 {[%clk 00:22:43]} {[%emt 00:00:09]} Nd5
{[%clk 00:22:18]} {[%emt 00:00:53]} 10. Bg3 {[%clk 00:22:01]} {[%emt 00:00:47]}
Nb4 {[%emt 00:00:17]} 11. Be2 {[%clk 00:21:54]} {[%emt 00:00:11]} Ba6 {[%clk
00:21:50]} {[%emt 00:00:23]} 12. O-O {[%clk 00:21:46]} {[%emt 00:00:18]} Bxe2
{[%clk 00:19:31]} {[%emt 00:02:19]} 13. Qxe2 {[%clk 00:21:49]} {[%emt
00:00:01]} d6 {[%clk 00:19:26]} {[%emt 00:00:10]} 14. a3 {[%clk 00:21:38]}
{[%emt 00:00:17]} Nd5 {[%clk 00:19:14]} {[%emt 00:00:17]} 15. e4 {[%clk
00:21:32]} {[%emt 00:00:11]} Nf6 {[%clk 00:19:09]} {[%emt 00:00:10]} 16. Rac1
{[%clk 00:21:14]} {[%emt 00:00:23]} Nbd7 {[%clk 00:18:04]} {[%emt 00:01:10]} 17.
Qa6 {[%clk 00:20:45]} {[%emt 00:00:34]} e5 {[%clk 00:15:33]} {[%emt 00:02:36]}
18. Rfd1 {[%clk 00:19:44]} {[%emt 00:01:06]} exd4 {[%clk 00:15:01]} {[%emt
00:00:37]} 19. b4 {[%clk 00:18:54]} {[%emt 00:00:55]} Nh5 {[%clk 00:14:02]}
{[%emt 00:01:05]} 20. Bh2 {[%clk 00:18:43]} {[%emt 00:00:16]} Bg5 {[%clk
00:13:51]} {[%emt 00:00:15]} 21. Bxd6 {[%clk 00:17:28]} {[%emt 00:01:21]} Re8
{[%clk 00:13:50]} {[%emt 00:00:05]} 22. Qb5 {[%clk 00:16:13]} {[%emt 00:01:20]}
Bxd2 {[%clk 00:11:59]} {[%emt 00:01:56]} 23. Rxd2 {[%clk 00:16:06]} {[%emt
00:00:13]} Nhf6 {[%clk 00:10:57]} {[%emt 00:01:06]} 24. e5 {[%clk 00:15:46]}
{[%emt 00:00:25]} Ne4 {[%clk 00:10:02]} {[%emt 00:01:00]} 25. Rxd4 {[%clk
00:15:23]} {[%emt 00:00:28]} Ng5 {[%clk 00:09:17]} {[%emt 00:00:57]} 26. Nxg5
{[%clk 00:13:01]} {[%emt 00:02:21]} Qxg5 {[%clk 00:09:20]} 27. f4 {[%clk
00:13:05]} {[%emt 00:00:04]} Qg3 {[%clk 00:09:07]} {[%emt 00:00:14]} 28. Qd3
{[%clk 00:13:09]} {[%emt 00:00:02]} Qxd3 {[%clk 00:08:31]} {[%emt 00:00:42]} 29.
Rxd3 {[%clk 00:13:13]} {[%emt 00:00:01]} f6 {[%clk 00:07:24]} {[%emt 00:01:12]}
30. Rc7 {[%clk 00:12:48]} {[%emt 00:00:30]} Rad8 {[%clk 00:06:42]} {[%emt
00:00:47]} 31. Rxa7 {[%clk 00:10:58]} {[%emt 00:01:55]} fxe5 {[%clk 00:06:33]}
{[%emt 00:00:14]} 32. Bc7 {[%clk 00:10:51]} {[%emt 00:00:12]} e4 {[%clk
00:05:25]} {[%emt 00:01:13]} 33. Rd1 {[%clk 00:10:55]} {[%emt 00:00:02]} Ra8
{[%clk 00:03:06]} {[%emt 00:02:23]} 34. Rxa8 {[%clk 00:10:58]} {[%emt
00:00:02]} Rxa8 {[%clk 00:03:09]} {[%emt 00:00:02]} 35. Rxd7 {[%clk 00:11:02]}
{[%emt 00:00:01]} Rxa3 {[%clk 00:03:03]} {[%emt 00:00:12]} 36. Re7 {[%clk
00:11:04]} {[%emt 00:00:02]} Rb3 {[%clk 00:02:39]} {[%emt 00:00:31]} 37. Rxe4
{[%clk 00:10:55]} {[%emt 00:00:14]} Kf7 {[%clk 00:02:42]} 38. Bxb6 {[%clk
00:10:57]} {[%emt 00:00:04]} Kf6 {[%clk 00:02:46]} {[%emt 00:00:01]} 39. Bc5
{[%clk 00:10:51]} {[%emt 00:00:11]} Kf5 {[%clk 00:02:48]} {[%emt 00:00:02]} 40.
Rd4 {[%clk 00:10:51]} {[%emt 00:00:05]} h5 {[%clk 00:02:39]} {[%emt 00:00:14]}
41. Rd5+ {[%clk 00:10:12]} {[%emt 00:00:44]} Kxf4 {[%clk 00:02:32]} {[%emt
00:00:13]} 42. Rxh5 {[%clk 00:09:44]} {[%emt 00:00:34]} g5 {[%clk 00:02:36]} 43.
h4 {[%clk 00:09:47]} {[%emt 00:00:04]} g4 {[%clk 00:02:24]} {[%emt 00:00:14]}
44. Bd6+ {[%clk 00:09:43]} {[%emt 00:00:09]} Ke4 {[%clk 00:02:00]} {[%emt
00:00:30]} 45. Re5+ {[%clk 00:09:31]} {[%emt 00:00:17]} Kd4 {[%clk 00:01:58]}
{[%emt 00:00:08]} 46. Re1 {[%clk 00:09:31]} {[%emt 00:00:05]} g3 {[%clk
00:01:54]} {[%emt 00:00:08]} 47. h5 {[%clk 00:09:27]} {[%emt 00:00:09]} Ra3
{[%clk 00:01:33]} {[%emt 00:00:27]} 48. h6 {[%clk 00:09:20]} {[%emt 00:00:11]}
Kd5 {[%clk 00:01:20]} {[%emt 00:00:18]} 49. h7 {[%clk 00:09:16]} {[%emt
00:00:10]} Ra8 {[%clk 00:01:24]} {[%emt 00:00:06]} 50. Be5 {[%clk 00:09:19]}
1-0

[Event "New Zealand Rapid Championship"]
[Site "Wellington"]
[Date "2023.01.11"]
[Round "2.6"]
[White "Yu, Zachary"]
[Black "Croad, Nicolas"]
[Result "0-1"]
[TimeControl "25+5"]
[BlackTitle "FM"]
[WhiteFideId "4311930"]
[BlackFideId "4300793"]
[WhiteElo "1675"]
[BlackElo "2309"]

1. d4 {[%clk 00:25:09]} Nf6 {[%clk 00:25:10]} 2. c4 {[%clk 00:25:13]} e6 {[%clk
00:25:13]} {[%emt 00:00:02]} 3. Nf3 {[%clk 00:25:16]} {[%emt 00:00:01]} d5
{[%clk 00:25:17]} 4. g3 {[%clk 00:25:20]} Bb4+ {[%clk 00:25:20]} {[%emt
00:00:02]} 5. Bd2 {[%clk 00:25:24]} Be7 {[%clk 00:25:24]} 6. Bg2 {[%clk
00:25:27]} {[%emt 00:00:02]} O-O {[%clk 00:25:27]} {[%emt 00:00:02]} 7. O-O
{[%clk 00:25:30]} {[%emt 00:00:02]} c6 {[%clk 00:25:31]} {[%emt 00:00:02]} 8.
Qc2 {[%clk 00:25:35]} Nbd7 {[%clk 00:25:33]} {[%emt 00:00:03]} 9. Rd1 {[%clk
00:25:37]} {[%emt 00:00:02]} b6 {[%clk 00:25:36]} {[%emt 00:00:03]} 10. Bf4
{[%clk 00:25:41]} {[%emt 00:00:01]} Ba6 {[%clk 00:25:30]} {[%emt 00:00:10]} 11.
b3 {[%clk 00:25:45]} {[%emt 00:00:01]} Rc8 {[%clk 00:25:19]} {[%emt 00:00:15]}
12. Nc3 {[%clk 00:25:48]} {[%emt 00:00:02]} Nh5 {[%clk 00:24:41]} {[%emt
00:00:43]} 13. Bc1 {[%clk 00:25:38]} {[%emt 00:00:16]} f5 {[%clk 00:24:43]}
{[%emt 00:00:03]} 14. cxd5 {[%clk 00:24:33]} {[%emt 00:01:10]} cxd5 {[%clk
00:24:34]} {[%emt 00:00:14]} 15. Bb2 {[%clk 00:24:36]} {[%emt 00:00:01]} Qe8
{[%clk 00:23:06]} {[%emt 00:01:33]} 16. Qd2 {[%clk 00:24:11]} {[%emt 00:00:29]}
Nhf6 {[%clk 00:22:24]} {[%emt 00:00:47]} 17. Rac1 {[%clk 00:23:36]} {[%emt
00:00:40]} Bb4 {[%clk 00:21:30]} {[%emt 00:01:00]} 18. Ne5 {[%clk 00:20:33]}
{[%emt 00:03:07]} Nxe5 {[%clk 00:20:27]} {[%emt 00:01:09]} 19. dxe5 {[%clk
00:20:36]} {[%emt 00:00:03]} Ne4 {[%clk 00:20:28]} {[%emt 00:00:03]} 20. Bxe4
{[%clk 00:20:24]} {[%emt 00:00:17]} fxe4 {[%clk 00:20:31]} {[%emt 00:00:01]} 21.
a3 {[%clk 00:20:27]} {[%emt 00:00:02]} Bc5 {[%clk 00:18:28]} {[%emt 00:02:09]}
22. e3 {[%clk 00:20:21]} {[%emt 00:00:12]} Qh5 {[%clk 00:18:19]} {[%emt
00:00:14]} 23. b4 {[%clk 00:19:31]} {[%emt 00:00:54]} Be7 {[%clk 00:18:19]}
{[%emt 00:00:05]} 24. b5 {[%clk 00:19:34]} {[%emt 00:00:02]} Bb7 {[%clk
00:18:19]} {[%emt 00:00:05]} 25. Qe2 {[%clk 00:19:22]} {[%emt 00:00:17]} Qg6
{[%clk 00:17:20]} {[%emt 00:01:05]} 26. Nb1 {[%clk 00:18:36]} {[%emt 00:00:51]}
Rxc1 {[%clk 00:16:53]} {[%emt 00:00:32]} 27. Rxc1 {[%clk 00:18:39]} {[%emt
00:00:01]} Rc8 {[%clk 00:16:58]} 28. Rxc8+ {[%clk 00:18:22]} {[%emt 00:00:21]}
Bxc8 {[%clk 00:17:02]} 29. Qc2 {[%clk 00:18:16]} {[%emt 00:00:11]} Qe8 {[%clk
00:17:05]} {[%emt 00:00:03]} 30. a4 {[%clk 00:18:20]} {[%emt 00:00:01]} Bd7
{[%clk 00:15:46]} {[%emt 00:01:25]} 31. Nd2 {[%clk 00:18:16]} {[%emt 00:00:09]}
Qc8 {[%clk 00:14:42]} {[%emt 00:01:09]} 32. Qxc8+ {[%clk 00:18:17]} {[%emt
00:00:03]} Bxc8 {[%clk 00:14:46]} 33. Nb3 {[%clk 00:18:20]} {[%emt 00:00:01]}
Kf7 {[%clk 00:14:05]} {[%emt 00:00:49]} 34. Nd4 {[%clk 00:18:22]} Bd7 {[%clk
00:14:09]} {[%emt 00:00:02]} 35. Kg2 {[%clk 00:17:53]} {[%emt 00:00:33]} Ke8
{[%clk 00:14:12]} {[%emt 00:00:02]} 36. g4 {[%clk 00:17:44]} {[%emt 00:00:13]}
Kd8 {[%clk 00:14:08]} {[%emt 00:00:10]} 37. Kg3 {[%clk 00:17:44]} {[%emt
00:00:05]} Kc7 {[%clk 00:13:50]} {[%emt 00:00:23]} 38. h4 {[%clk 00:17:46]}
{[%emt 00:00:02]} Kb7 {[%clk 00:13:38]} {[%emt 00:00:18]} 39. g5 {[%clk
00:17:46]} {[%emt 00:00:04]} a6 {[%clk 00:13:27]} {[%emt 00:00:17]} 40. f4
{[%clk 00:16:43]} {[%emt 00:01:08]} exf3 {[%clk 00:13:14]} {[%emt 00:00:18]} 41.
Kxf3 {[%clk 00:16:47]} {[%emt 00:00:01]} axb5 {[%clk 00:13:14]} {[%emt
00:00:09]} 42. Nxb5 {[%clk 00:16:29]} {[%emt 00:00:19]} Ka6 {[%clk 00:12:35]}
{[%emt 00:00:45]} 43. Nc7+ {[%clk 00:15:32]} {[%emt 00:01:02]} Ka5 {[%clk
00:12:28]} {[%emt 00:00:12]} 44. e4 {[%clk 00:15:36]} {[%emt 00:00:01]} dxe4+
{[%clk 00:12:15]} {[%emt 00:00:17]} 45. Kxe4 {[%clk 00:15:23]} {[%emt
00:00:19]} Bd8 {[%clk 00:11:48]} {[%emt 00:00:32]} 46. Bc3+ {[%clk 00:14:40]}
{[%emt 00:00:47]} Kxa4 {[%clk 00:11:38]} {[%emt 00:00:15]} 47. Na6 {[%clk
00:14:43]} {[%emt 00:00:02]} Be7 {[%clk 00:11:09]} {[%emt 00:00:36]} 48. Bd2
{[%clk 00:12:22]} {[%emt 00:02:22]} Kb5 {[%clk 00:10:43]} {[%emt 00:00:33]} 49.
Nc7+ {[%clk 00:11:16]} {[%emt 00:01:11]} Kc4 {[%clk 00:10:42]} {[%emt
00:00:06]} 50. h5 {[%clk 00:10:38]} {[%emt 00:00:42]} g6 {[%clk 00:10:25]}
{[%emt 00:00:23]} 51. Na6 {[%clk 00:10:28]} {[%emt 00:00:15]} b5 {[%clk
00:10:16]} {[%emt 00:00:15]} 52. hxg6 {[%clk 00:09:24]} {[%emt 00:01:09]} hxg6
{[%clk 00:10:20]} {[%emt 00:00:02]} 53. Nb8 {[%clk 00:09:22]} {[%emt 00:00:08]}
Be8 {[%clk 00:10:23]} {[%emt 00:00:01]} 54. Kf3 {[%clk 00:08:44]} {[%emt
00:00:45]} b4 {[%clk 00:10:26]} 55. Ke2 {[%clk 00:08:42]} {[%emt 00:00:07]} Bb5
{[%clk 00:10:25]} {[%emt 00:00:06]} 56. Kd1 {[%clk 00:08:43]} {[%emt 00:00:05]}
b3 {[%clk 00:10:21]} {[%emt 00:00:09]} 57. Kc1 {[%clk 00:08:35]} {[%emt
00:00:13]} Ba3+ {[%clk 00:10:09]} {[%emt 00:00:17]} 58. Kb1 {[%clk 00:08:05]}
{[%emt 00:00:33]} Kd4 {[%clk 00:10:10]} {[%emt 00:00:05]} 0-1

[Event "New Zealand Rapid Championship"]
[Site "Wellington"]
[Date "2023.01.11"]
[Round "2.7"]
[White "Xie, Felix"]
[Black "Yu, Weiyang (Cadence)"]
[Result "1-0"]
[TimeControl "25+5"]
[WhiteTitle "CM"]
[WhiteFideId "4308174"]
[BlackFideId "4313135"]
[WhiteElo "2232"]
[BlackElo "1433"]

1. d4 {[%clk 00:25:08]} {[%emt 00:00:01]} d5 {[%clk 00:25:09]} {[%emt
00:00:01]} 2. c4 {[%clk 00:25:12]} e6 {[%clk 00:25:13]} 3. Nf3 {[%clk
00:25:13]} {[%emt 00:00:04]} a6 {[%clk 00:25:17]} {[%emt 00:00:02]} 4. Bg5
{[%clk 00:25:06]} {[%emt 00:00:11]} Be7 {[%clk 00:25:18]} {[%emt 00:00:04]} 5.
Bxe7 {[%clk 00:25:10]} {[%emt 00:00:01]} Qxe7 {[%clk 00:25:21]} {[%emt
00:00:03]} 6. Nbd2 {[%clk 00:25:11]} {[%emt 00:00:03]} Nf6 {[%clk 00:25:22]}
{[%emt 00:00:05]} 7. g3 {[%clk 00:25:14]} {[%emt 00:00:01]} O-O {[%clk
00:25:04]} {[%emt 00:00:24]} 8. Bg2 {[%clk 00:25:18]} {[%emt 00:00:01]} Bd7
{[%clk 00:25:01]} {[%emt 00:00:08]} 9. O-O {[%clk 00:25:18]} {[%emt 00:00:04]}
Nc6 {[%clk 00:25:04]} {[%emt 00:00:02]} 10. Qc2 {[%clk 00:25:13]} {[%emt
00:00:10]} dxc4 {[%clk 00:24:57]} {[%emt 00:00:13]} 11. Nxc4 {[%clk 00:25:17]}
{[%emt 00:00:01]} Rab8 {[%clk 00:24:52]} {[%emt 00:00:11]} 12. Rfd1 {[%clk
00:25:14]} {[%emt 00:00:06]} b5 {[%clk 00:24:46]} {[%emt 00:00:12]} 13. Nce5
{[%clk 00:25:16]} {[%emt 00:00:02]} Nxe5 {[%clk 00:24:40]} {[%emt 00:00:11]} 14.
Nxe5 {[%clk 00:25:09]} {[%emt 00:00:12]} Rfc8 {[%clk 00:24:25]} {[%emt
00:00:20]} 15. Bc6 {[%clk 00:24:55]} {[%emt 00:00:19]} Rb6 {[%clk 00:23:38]}
{[%emt 00:00:53]} 16. Rac1 {[%clk 00:24:47]} {[%emt 00:00:12]} Be8 {[%clk
00:22:05]} {[%emt 00:01:38]} 17. Bxe8 {[%clk 00:23:49]} {[%emt 00:01:03]} Nxe8
{[%clk 00:21:46]} {[%emt 00:00:24]} 18. Nd3 {[%clk 00:23:19]} {[%emt 00:00:35]}
Nd6 {[%clk 00:21:28]} {[%emt 00:00:24]} 19. Nc5 {[%clk 00:23:18]} {[%emt
00:00:12]} Nb7 {[%clk 00:20:53]} {[%emt 00:00:34]} 20. Qe4 {[%clk 00:22:49]}
{[%emt 00:00:33]} Nxc5 {[%clk 00:20:35]} {[%emt 00:00:23]} 21. dxc5 {[%clk
00:22:51]} {[%emt 00:00:03]} Rbb8 {[%clk 00:20:35]} {[%emt 00:00:05]} 22. Qc6
{[%clk 00:22:50]} {[%emt 00:00:06]} Rd8 {[%clk 00:20:13]} {[%emt 00:00:27]} 23.
Rxd8+ {[%clk 00:22:31]} {[%emt 00:00:23]} Rxd8 {[%clk 00:20:16]} {[%emt
00:00:02]} 24. Qxa6 {[%clk 00:22:28]} {[%emt 00:00:09]} Qd7 {[%clk 00:19:38]}
{[%emt 00:00:43]} 25. Rc3 {[%clk 00:20:05]} {[%emt 00:02:28]} Qd1+ {[%clk
00:18:52]} {[%emt 00:00:51]} 26. Kg2 {[%clk 00:20:08]} Qd5+ {[%clk 00:18:27]}
{[%emt 00:00:30]} 27. f3 {[%clk 00:19:29]} {[%emt 00:00:45]} Rb8 {[%clk
00:17:11]} {[%emt 00:01:20]} 28. Qa7 {[%clk 00:18:36]} {[%emt 00:00:57]} Qb7
{[%clk 00:16:55]} {[%emt 00:00:21]} 29. Ra3 {[%clk 00:17:28]} {[%emt 00:01:14]}
g6 {[%clk 00:16:14]} {[%emt 00:00:46]} 30. c6 {[%clk 00:16:08]} {[%emt
00:01:25]} Qxa7 {[%clk 00:15:15]} {[%emt 00:01:04]} 31. Rxa7 {[%clk 00:16:11]}
{[%emt 00:00:02]} Rb6 {[%clk 00:14:32]} {[%emt 00:00:48]} 32. Rxc7 {[%clk
00:16:08]} {[%emt 00:00:07]} Kg7 {[%clk 00:14:36]} {[%emt 00:00:02]} 33. e4
{[%clk 00:16:02]} {[%emt 00:00:11]} Ra6 {[%clk 00:14:20]} {[%emt 00:00:21]} 34.
a3 {[%clk 00:15:49]} {[%emt 00:00:17]} Rb6 {[%clk 00:14:08]} {[%emt 00:00:17]}
35. Kf2 {[%clk 00:15:45]} {[%emt 00:00:09]} Kf6 {[%clk 00:14:06]} {[%emt
00:00:07]} 36. Ke3 {[%clk 00:15:30]} {[%emt 00:00:20]} e5 {[%clk 00:13:39]}
{[%emt 00:00:34]} 37. Kd3 {[%clk 00:15:14]} {[%emt 00:00:19]} Ke6 {[%clk
00:13:34]} {[%emt 00:00:10]} 38. Rb7 {[%clk 00:15:09]} {[%emt 00:00:09]} Rxc6
{[%clk 00:13:36]} {[%emt 00:00:03]} 39. Rxb5 {[%clk 00:15:12]} {[%emt
00:00:01]} Rd6+ {[%clk 00:13:34]} {[%emt 00:00:08]} 40. Rd5 {[%clk 00:15:00]}
{[%emt 00:00:17]} Rb6 {[%clk 00:13:28]} {[%emt 00:00:11]} 41. b4 {[%clk
00:14:37]} {[%emt 00:00:28]} Ra6 {[%clk 00:13:31]} {[%emt 00:00:02]} 42. Ra5
{[%clk 00:14:40]} Rd6+ {[%clk 00:13:35]} {[%emt 00:00:01]} 43. Ke3 {[%clk
00:14:39]} {[%emt 00:00:06]} f5 {[%clk 00:13:04]} {[%emt 00:00:36]} 44. Rd5
{[%clk 00:14:31]} {[%emt 00:00:13]} Ra6 {[%clk 00:12:59]} {[%emt 00:00:10]} 45.
Rd3 {[%clk 00:14:35]} {[%emt 00:00:06]} Rb6 {[%clk 00:12:49]} {[%emt 00:00:11]}
46. Rb3 {[%clk 00:14:31]} {[%emt 00:00:08]} g5 {[%clk 00:12:42]} {[%emt
00:00:12]} 47. exf5+ {[%clk 00:14:22]} {[%emt 00:00:14]} Kxf5 {[%clk 00:12:44]}
{[%emt 00:00:04]} 48. a4 {[%clk 00:14:25]} {[%emt 00:00:01]} Ra6 {[%clk
00:12:37]} {[%emt 00:00:13]} 49. a5 {[%clk 00:14:27]} {[%emt 00:00:03]} g4
{[%clk 00:12:21]} {[%emt 00:00:21]} 50. fxg4+ {[%clk 00:14:22]} {[%emt
00:00:09]} Kxg4 {[%clk 00:12:23]} {[%emt 00:00:03]} 51. Ra3 {[%clk 00:14:22]}
{[%emt 00:00:05]} Kh3 {[%clk 00:12:21]} {[%emt 00:00:07]} 52. b5 {[%clk
00:14:21]} {[%emt 00:00:06]} Ra8 {[%clk 00:12:21]} {[%emt 00:00:07]} 53. b6
{[%clk 00:14:17]} {[%emt 00:00:08]} Kxh2 {[%clk 00:12:17]} {[%emt 00:00:09]} 54.
b7 {[%clk 00:14:18]} {[%emt 00:00:04]} Rb8 {[%clk 00:12:20]} {[%emt 00:00:02]}
55. a6 {[%clk 00:14:17]} {[%emt 00:00:06]} 1-0

[Event "New Zealand Rapid Championship"]
[Site "Wellington"]
[Date "2023.01.11"]
[Round "2.8"]
[White "Gan, Emily Cathay"]
[Black "Carpinter, Anthony L"]
[Result "0-1"]
[TimeControl "25+5"]
[WhiteFideId "4310608"]
[BlackFideId "4300238"]
[WhiteElo "1632"]
[BlackElo "2147"]

1. c4 {[%clk 00:25:08]} {[%emt 00:00:01]} e6 {[%clk 00:24:54]} {[%emt
00:00:17]} 2. Nc3 {[%clk 00:25:07]} {[%emt 00:00:05]} d5 {[%clk 00:24:55]}
{[%emt 00:00:04]} 3. d4 {[%clk 00:25:08]} {[%emt 00:00:03]} Nf6 {[%clk
00:24:51]} {[%emt 00:00:09]} 4. Nf3 {[%clk 00:25:07]} {[%emt 00:00:07]} Be7
{[%clk 00:24:51]} {[%emt 00:00:05]} 5. Bf4 {[%clk 00:24:46]} {[%emt 00:00:25]}
O-O {[%clk 00:24:48]} {[%emt 00:00:08]} 6. h3 {[%clk 00:24:36]} {[%emt
00:00:16]} b6 {[%clk 00:24:12]} {[%emt 00:00:40]} 7. cxd5 {[%clk 00:23:51]}
{[%emt 00:00:50]} Nxd5 {[%clk 00:23:59]} {[%emt 00:00:17]} 8. Nxd5 {[%clk
00:23:19]} {[%emt 00:00:37]} Qxd5 {[%clk 00:23:19]} {[%emt 00:00:45]} 9. a3
{[%clk 00:22:44]} {[%emt 00:00:41]} Ba6 {[%clk 00:20:52]} {[%emt 00:02:31]} 10.
Bxc7 {[%clk 00:19:44]} {[%emt 00:03:04]} Nc6 {[%clk 00:20:37]} {[%emt
00:00:20]} 11. g3 {[%clk 00:16:15]} {[%emt 00:03:33]} Rac8 {[%clk 00:19:57]}
{[%emt 00:00:46]} 12. Bf4 {[%clk 00:15:58]} {[%emt 00:00:22]} Rfd8 {[%clk
00:19:03]} {[%emt 00:00:59]} 13. Be3 {[%clk 00:10:53]} {[%emt 00:05:11]} e5
{[%clk 00:12:25]} {[%emt 00:06:43]} 14. dxe5 {[%clk 00:09:10]} {[%emt
00:01:50]} Qb5 {[%clk 00:07:45]} {[%emt 00:04:42]} 15. Qb1 {[%clk 00:08:02]}
{[%emt 00:01:13]} Na5 {[%clk 00:05:48]} {[%emt 00:02:01]} 16. Bd4 {[%clk
00:06:18]} {[%emt 00:01:49]} Nb3 {[%clk 00:04:12]} {[%emt 00:01:41]} 17. e3
{[%clk 00:05:47]} {[%emt 00:00:36]} Qa5+ {[%clk 00:04:16]} {[%emt 00:00:02]} 18.
Bc3 {[%clk 00:05:12]} {[%emt 00:00:40]} Rxc3 {[%clk 00:04:10]} {[%emt
00:01:19]} 0-1

[Event "New Zealand Rapid Championship"]
[Site "Wellington"]
[Date "2023.01.11"]
[Round "2.9"]
[White "Sole, Michael D"]
[Black "Gilmore, Blake"]
[Result "1-0"]
[TimeControl "25+5"]
[WhiteFideId "4309030"]
[BlackFideId "4317548"]
[WhiteElo "2093"]
[BlackElo "1462"]

1. e4 {[%clk 00:25:06]} {[%emt 00:00:03]} d6 {[%clk 00:25:09]} {[%emt
00:00:02]} 2. d4 {[%clk 00:24:53]} {[%emt 00:00:18]} Nf6 {[%clk 00:25:12]}
{[%emt 00:00:02]} 3. Nc3 {[%clk 00:24:31]} {[%emt 00:00:27]} g6 {[%clk
00:25:12]} {[%emt 00:00:05]} 4. Nf3 {[%clk 00:24:23]} {[%emt 00:00:14]} Bg7
{[%clk 00:25:15]} {[%emt 00:00:02]} 5. Be2 {[%clk 00:24:12]} {[%emt 00:00:16]}
O-O {[%clk 00:25:10]} {[%emt 00:00:10]} 6. O-O {[%clk 00:24:07]} {[%emt
00:00:10]} Nbd7 {[%clk 00:25:00]} {[%emt 00:00:15]} 7. h3 {[%clk 00:23:34]}
{[%emt 00:00:38]} e5 {[%clk 00:24:49]} {[%emt 00:00:17]} 8. dxe5 {[%clk
00:23:01]} {[%emt 00:00:39]} Nxe5 {[%clk 00:24:51]} {[%emt 00:00:02]} 9. Nxe5
{[%clk 00:22:51]} {[%emt 00:00:15]} dxe5 {[%clk 00:24:54]} {[%emt 00:00:02]} 10.
Be3 {[%clk 00:22:25]} {[%emt 00:00:32]} a6 {[%clk 00:24:18]} {[%emt 00:00:41]}
11. Bc4 {[%clk 00:21:33]} {[%emt 00:00:57]} c6 {[%clk 00:21:55]} {[%emt
00:02:29]} 12. a4 {[%clk 00:21:08]} {[%emt 00:00:30]} Re8 {[%clk 00:21:50]}
{[%emt 00:00:10]} 13. a5 {[%clk 00:20:57]} {[%emt 00:00:16]} Be6 {[%clk
00:21:45]} {[%emt 00:00:10]} 14. Qe2 {[%clk 00:20:48]} {[%emt 00:00:13]} Bxc4
{[%clk 00:21:19]} {[%emt 00:00:31]} 15. Qxc4 {[%clk 00:20:51]} {[%emt
00:00:02]} Qe7 {[%clk 00:21:06]} {[%emt 00:00:19]} 16. Rfd1 {[%clk 00:20:15]}
{[%emt 00:00:41]} Rad8 {[%clk 00:20:13]} {[%emt 00:00:58]} 17. Bb6 {[%clk
00:19:58]} {[%emt 00:00:22]} Rxd1+ {[%clk 00:20:14]} {[%emt 00:00:04]} 18. Rxd1
{[%clk 00:19:54]} {[%emt 00:00:09]} Nd7 {[%clk 00:20:16]} {[%emt 00:00:03]} 19.
Qb3 {[%clk 00:19:19]} {[%emt 00:00:39]} Nxb6 {[%clk 00:19:22]} {[%emt
00:01:01]} 20. Qxb6 {[%clk 00:19:21]} {[%emt 00:00:02]} h5 {[%clk 00:18:45]}
{[%emt 00:00:42]} 21. Na4 {[%clk 00:18:57]} {[%emt 00:00:29]} Bf8 {[%clk
00:18:32]} {[%emt 00:00:18]} 22. c3 {[%clk 00:18:37]} {[%emt 00:00:25]} Rc8
{[%clk 00:17:56]} {[%emt 00:00:42]} 23. b4 {[%clk 00:18:08]} {[%emt 00:00:34]}
Qc7 {[%clk 00:17:41]} {[%emt 00:00:21]} 24. Qe3 {[%clk 00:17:32]} {[%emt
00:00:39]} c5 {[%clk 00:14:48]} {[%emt 00:02:59]} 25. Nb6 {[%clk 00:16:35]}
{[%emt 00:01:02]} Rd8 {[%clk 00:14:52]} {[%emt 00:00:01]} 26. Nd5 {[%clk
00:16:25]} {[%emt 00:00:15]} Qc6 {[%clk 00:14:34]} {[%emt 00:00:22]} 27. Qg5
{[%clk 00:15:44]} {[%emt 00:00:45]} Qc8 {[%clk 00:12:42]} {[%emt 00:01:58]} 28.
Qxe5 {[%clk 00:15:26]} {[%emt 00:00:23]} cxb4 {[%clk 00:12:09]} {[%emt
00:00:38]} 29. cxb4 {[%clk 00:14:09]} {[%emt 00:01:22]} Bg7 {[%clk 00:08:41]}
{[%emt 00:03:33]} 30. Qg5 {[%clk 00:13:05]} {[%emt 00:01:08]} Bf8 {[%clk
00:08:13]} {[%emt 00:00:34]} 31. Rc1 {[%clk 00:12:45]} {[%emt 00:00:24]} Qb8
{[%clk 00:07:35]} {[%emt 00:00:44]} 32. Qf6 {[%clk 00:11:00]} {[%emt 00:01:48]}
Rc8 {[%clk 00:06:35]} {[%emt 00:01:07]} 33. Rd1 {[%clk 00:10:34]} {[%emt
00:00:30]} Rd8 {[%clk 00:05:44]} {[%emt 00:00:57]} 34. Qb6 {[%clk 00:09:50]}
{[%emt 00:00:47]} Kg7 {[%clk 00:05:30]} {[%emt 00:00:23]} 35. Qd4+ {[%clk
00:09:22]} {[%emt 00:00:30]} Kh6 {[%clk 00:05:00]} {[%emt 00:00:36]} 36. Qh8+
{[%clk 00:08:42]} {[%emt 00:00:47]} Kg5 {[%clk 00:05:03]} 37. f4+ {[%clk
00:05:50]} {[%emt 00:02:56]} Qxf4 {[%clk 00:03:41]} {[%emt 00:01:27]} 38. Nxf4
{[%clk 00:05:46]} {[%emt 00:00:09]} Bc5+ {[%clk 00:03:45]} 39. bxc5 {[%clk
00:05:33]} {[%emt 00:00:18]} Rxh8 {[%clk 00:03:48]} {[%emt 00:00:01]} 40. Nd5
{[%clk 00:05:07]} {[%emt 00:00:30]} Rd8 {[%clk 00:03:27]} {[%emt 00:00:26]} 41.
Kf2 {[%clk 00:04:32]} {[%emt 00:00:40]} f5 {[%clk 00:03:06]} {[%emt 00:00:26]}
42. e5 {[%clk 00:04:33]} {[%emt 00:00:04]} Re8 {[%clk 00:02:59]} {[%emt
00:00:13]} 43. Re1 {[%clk 00:04:33]} {[%emt 00:00:05]} f4 {[%clk 00:02:59]}
{[%emt 00:00:05]} 44. e6 {[%clk 00:04:36]} {[%emt 00:00:02]} Kf5 {[%clk
00:03:02]} {[%emt 00:00:01]} 45. e7 {[%clk 00:04:33]} {[%emt 00:00:07]} g5
{[%clk 00:02:58]} {[%emt 00:00:10]} 46. Nc7 {[%clk 00:04:35]} {[%emt 00:00:02]}
1-0